bitfinex-derivatives/quotes_BTCF0:USTF0_20210109
["timestamp","ask_amount","ask_price","bid_price","bid_amount"]
[1610212046220,0.03064178,40324.0,40300.0,0.09773]
[1610212046423,0.13632608,40311.0,40310.0,0.13632608]
[1610212046623,0.03064178,40324.0,40310.0,0.13632608]
[1610212046822,0.00030338,40311.0,40310.0,0.13632608]
[1610212047021,0.03064176,40323.0,40311.0,0.4539]
[1610212047222,0.03064039,40325.0,40311.0,0.4539]
[1610212047622,0.03063888,40322.0,40311.0,0.4539]
[1610212047821,0.03064016,40324.0,40311.0,0.4539]
[1610212048022,0.03064013,40325.0,40311.0,0.4539]
[1610212048421,0.03063968,40323.0,40311.0,0.4539]
[1610212048621,0.03063904,40324.0,40311.0,0.4539]
[1610212048822,0.0306388,40322.0,40311.0,0.4539]
[1610212049024,0.0306388,40322.0,40310.0,0.08403]
[1610212049025,0.00030336,40322.0,40310.0,0.08403]
[1610212049222,0.01063864,40323.0,40319.0,3.7131]
[1610212049423,0.03063691,40334.0,40319.0,3.7131]
[1610212049622,0.03063551,40322.0,40319.0,3.814]
[1610212049823,0.00030332,40322.0,40319.0,3.814]
[1610212050023,0.03063301,40333.0,40319.0,3.814]
[1610212050222,0.1556,40349.0,40319.0,3.814]
[1610212050423,0.03062906,40332.0,40319.0,3.814]
[1610212050625,0.0303258,40332.0,40319.0,3.814]
[1610212050824,0.03062845,40348.0,40319.0,3.814]
[1610212051026,0.1556,40349.0,40319.0,3.814]
[1610212051027,0.26731226,40324.0,40319.0,3.814]
[1610212052427,0.26731226,40324.0,40323.0,0.13632608]
[1610212053429,0.26731226,40324.0,40319.0,0.1009]
[1610212053830,0.03063254,40323.0,40319.0,0.1009]
[1610212054429,0.13632608,40320.0,40319.0,0.1009]
[1610212054629,0.13632608,40320.0,40310.0,0.08403]
[1610212054829,0.13632608,40320.0,40310.0,0.0102]
[1610212055030,0.16696508,40320.0,40310.0,0.0102]
[1610212055228,0.03064145,40319.0,40310.0,0.0102]
[1610212056531,0.13632608,40311.0,40310.0,0.0102]
[1610212057132,0.16696966,40311.0,40310.0,0.0102]
[1610212064342,0.16696966,40311.0,40310.0,0.00868407]
[1610212067248,0.03064358,40311.0,40310.0,0.00868407]
[1610212067650,0.03064457,40312.0,40310.0,0.00868407]
[1610212067850,0.03064251,40311.0,40310.0,0.00868407]
[1610212068049,0.03064159,40312.0,40310.0,0.00868407]
[1610212068449,0.03064074,40311.0,40310.0,0.00868407]
[1610212068649,0.13632608,40321.0,40310.0,0.00868407]
[1610212068850,0.03063972,40320.0,40310.0,0.00868407]
[1610212069652,0.33346374,40344.0,40310.0,0.00868407]
[1610212069653,0.03063517,40323.0,40310.0,0.00868407]
[1610212070050,0.03063445,40319.0,40310.0,0.00868407]
[1610212070251,0.03063564,40322.0,40310.0,0.00868407]
[1610212070452,0.13632608,40315.0,40314.0,0.13632608]
[1610212071052,0.16696245,40315.0,40310.0,0.00868407]
[1610212071553,0.03063669,40314.0,40310.0,0.00868407]
[1610212076058,0.06066581,40338.0,40310.0,0.00868407]
[1610212076259,1.0,40339.0,40310.0,0.00868407]
[1610212076459,0.2728,40344.0,40310.0,0.00868407]
[1610212076659,0.03062616,40323.0,40317.0,0.13632608]
[1610212078063,0.03062616,40323.0,40311.0,4.0607]
[1610212078262,0.03062616,40323.0,40310.0,0.00868407]
[1610212078664,0.13632608,40311.0,40310.0,0.00868407]
[1610212079465,0.00030328,40311.0,40310.0,0.00868407]
[1610212079867,0.2979,40338.0,40310.0,0.00868407]
[1610212080068,0.00030327,40323.0,40310.0,0.00868407]
[1610212080672,0.00030327,40323.0,40313.0,0.13632608]
[1610212080869,0.00030327,40323.0,40313.0,0.21420608]
[1610212082674,0.13632608,40317.0,40313.0,0.21420608]
[1610212083072,0.00030327,40323.0,40313.0,0.21420608]
[1610212083276,0.00030325,40316.0,40313.0,0.21420608]
[1610212083474,0.00030325,40322.0,40313.0,0.21420608]
[1610212083674,0.00030325,40315.0,40313.0,0.21420608]
[1610212084074,0.00030325,40321.0,40313.0,0.21420608]
[1610212084273,0.00030325,40323.0,40313.0,0.21420608]
[1610212084474,0.2979,40338.0,40313.0,0.21420608]
[1610212084475,0.00030325,40320.0,40313.0,0.21420608]
[1610212084873,0.13662933,40322.0,40313.0,0.21420608]
[1610212085076,0.00030325,40319.0,40313.0,0.21420608]
[1610212085274,0.00030323,40321.0,40313.0,0.21420608]
[1610212085475,0.13632608,40322.0,40313.0,0.21420608]
[1610212085874,0.00030323,40320.0,40313.0,0.21420608]
[1610212086076,0.00030323,40321.0,40313.0,0.21420608]
[1610212086278,0.00030323,40319.0,40313.0,0.21420608]
[1610212086677,0.13632608,40316.0,40313.0,0.07788]
[1610212087077,0.2979,40338.0,40313.0,0.07788]
[1610212087276,0.2979,40338.0,40310.0,0.00868407]
[1610212087680,0.00030323,40323.0,40311.0,0.00021616]
[1610212088679,0.13632608,40313.0,40310.0,0.00868407]
[1610212093286,0.07696,40321.0,40310.0,0.00868407]
[1610212093488,0.07696,40321.0,40311.0,0.00021621]
[1610212093688,0.07696,40321.0,40310.0,0.00868407]
[1610212094288,0.07696,40321.0,40311.0,0.00021619]
[1610212094689,0.13632608,40327.0,40311.0,0.00021619]
[1610212096390,1.0,40321.0,40311.0,0.00021619]
[1610212096589,0.13632608,40312.0,40311.0,0.00021619]
[1610212098291,0.13662938,40312.0,40311.0,0.00021619]
[1610212100292,0.13632608,40312.0,40311.0,0.00021619]
[1610212101411,0.1366294,40312.0,40311.0,0.00021619]
[1610212101593,0.13632608,40312.0,40311.0,0.00021619]
[1610212103496,0.10293,40321.0,40311.0,0.00021619]
[1610212103696,0.0031593,40323.0,40311.0,0.00021619]
[1610212103896,0.26731226,40324.0,40311.0,0.00021619]
[1610212104096,0.00030328,40320.0,40311.0,0.00021619]
[1610212104297,0.08392,40320.0,40311.0,0.00021619]
[1610212104697,0.08392,40320.0,40316.0,0.13632608]
[1610212104896,0.00030325,40319.0,40316.0,0.13632608]
[1610212105096,0.00030325,40319.0,40317.0,0.00021619]
[1610212108608,0.00030325,40319.0,40311.0,0.00021619]
[1610212108807,0.00030325,40319.0,40310.0,0.14501015]
[1610212108808,0.00030325,40319.0,40318.0,0.00021619]
[1610212109208,0.00030325,40319.0,40311.0,0.00021619]
[1610212109607,0.00030325,40319.0,40318.0,0.00021619]
[1610212109808,0.00030325,40319.0,40312.0,0.00021619]
[1610212110008,0.00030325,40319.0,40318.0,0.00021619]
[1610212110408,0.00030325,40319.0,40313.0,0.00021619]
[1610212110609,0.00030325,40319.0,40318.0,0.00021619]
[1610212110812,0.00030325,40319.0,40314.0,0.00021619]
[1610212111213,0.00030325,40319.0,40318.0,0.00021619]
[1610212111410,0.00030325,40319.0,40315.0,0.00021621]
[1610212111612,0.00030325,40319.0,40311.0,0.00021621]
[1610212112012,0.00030325,40319.0,40310.0,0.00868407]
[1610212112013,0.00030325,40319.0,40316.0,0.00021621]
[1610212112212,0.00030325,40319.0,40312.0,0.00021621]
[1610212112412,0.00030325,40319.0,40317.0,0.00021621]
[1610212112712,0.00030325,40319.0,40313.0,0.00021621]
[1610212112912,0.00030325,40319.0,40318.0,0.00021621]
[1610212113316,0.00030325,40319.0,40311.0,0.00021619]
[1610212113512,0.00030325,40319.0,40318.0,0.00021619]
[1610212113711,0.00030325,40319.0,40312.0,0.00021619]
[1610212114112,0.00030325,40319.0,40318.0,0.00021619]
[1610212114312,0.00030325,40319.0,40313.0,0.00021619]
[1610212114512,0.00030325,40319.0,40318.0,0.00021619]
[1610212114812,0.00030325,40319.0,40314.0,0.00021619]
[1610212115013,0.00030325,40319.0,40311.0,0.00021619]
[1610212115414,0.00030325,40319.0,40315.0,0.00021619]
[1610212115614,0.00030325,40319.0,40312.0,0.00021619]
[1610212115815,0.00030325,40319.0,40316.0,0.00021619]
[1610212116214,0.00030325,40319.0,40311.0,0.00021619]
[1610212116415,0.00030325,40319.0,40317.0,0.00021619]
[1610212116615,0.00030325,40319.0,40311.0,0.00021619]
[1610212116815,0.13632608,40312.0,40311.0,0.00021619]
[1610212117015,0.13632608,40312.0,40310.0,0.00868407]
[1610212117214,0.13662937,40312.0,40311.0,0.0002162]
[1610212117415,0.13632608,40312.0,40311.0,0.0002162]
[1610212117816,0.13662937,40312.0,40311.0,0.0002162]
[1610212122022,0.13662937,40312.0,40311.0,0.0002205]
[1610212122424,0.13662939,40312.0,40311.0,0.0002205]
[1610212127834,0.13662939,40312.0,40311.0,3.9099205]
[1610212128032,0.13632608,40312.0,40311.0,3.9099205]
[1610212128632,0.08392,40320.0,40311.0,3.9099205]
[1610212128832,0.13632608,40320.0,40318.0,0.13632608]
[1610212129034,0.00030326,40319.0,40318.0,0.13632608]
[1610212129233,0.07658326,40319.0,40318.0,0.13632608]
[1610212129633,0.07658326,40319.0,40318.0,0.13654654]
[1610212130438,0.07658326,40319.0,40318.0,0.00022046]
[1610212130835,0.07658326,40319.0,40313.0,0.13632608]
[1610212131236,0.07658326,40319.0,40318.0,0.00022046]
[1610212131437,0.07628,40319.0,40314.0,0.00022046]
[1610212131639,0.07658326,40319.0,40318.0,0.00022046]
[1610212132037,0.07658326,40319.0,40314.0,0.00022046]
[1610212132238,0.07658326,40319.0,40318.0,0.00022046]
[1610212132436,0.07628,40319.0,40315.0,0.00022046]
[1610212132838,0.07628,40319.0,40314.0,0.00022046]
[1610212133037,0.07628,40319.0,40316.0,0.00022046]
[1610212133238,0.07628,40319.0,40315.0,0.00022046]
[1610212133640,0.07628,40319.0,40317.0,0.00022046]
[1610212133839,0.07628,40319.0,40316.0,0.00022046]
[1610212134039,0.07628,40319.0,40318.0,0.00022046]
[1610212134439,0.13632608,40320.0,40317.0,0.00022046]
[1610212134639,0.00030326,40319.0,40318.0,0.00022046]
[1610212134840,0.00030326,40319.0,40318.0,0.13654654]
[1610212135041,0.00030326,40319.0,40318.0,0.13632608]
[1610212135442,0.00030326,40319.0,40318.0,0.13654654]
[1610212135643,0.00030326,40319.0,40318.0,0.00022046]
[1610212136243,0.00030326,40319.0,40312.0,0.00022046]
[1610212136444,0.00030327,40319.0,40318.0,0.00022046]
[1610212136645,0.00030327,40319.0,40313.0,0.00022046]
[1610212136848,0.13632608,40314.0,40313.0,0.00022046]
[1610212137045,0.13632608,40314.0,40311.0,3.9097]
[1610212137446,0.13632608,40314.0,40312.0,0.00022046]
[1610212138845,0.13632608,40314.0,40313.0,0.13632608]
[1610212139246,0.13632608,40314.0,40313.0,0.13654654]
[1610212139448,0.13662935,40314.0,40313.0,0.13654654]
[1610212139647,0.10764,40320.0,40313.0,0.13654654]
[1610212140048,0.26731226,40324.0,40314.0,0.00022122]
[1610212140247,0.00030327,40319.0,40314.0,0.00022122]
[1610212140449,0.11449,40320.0,40314.0,0.00022122]
[1610212140848,0.11449,40320.0,40319.0,0.13632608]
[1610212141049,0.11449,40320.0,40314.0,0.00022122]
[1610212141449,0.11449,40320.0,40311.0,0.00022122]
[1610212141650,0.11449,40320.0,40315.0,0.00022122]
[1610212142052,0.11449,40320.0,40316.0,0.00022122]
[1610212142451,0.11449,40320.0,40311.0,0.00022122]
[1610212142851,0.11449,40320.0,40317.0,0.00022122]
[1610212143051,0.11449,40320.0,40312.0,0.00022122]
[1610212143550,0.11449,40320.0,40313.0,0.00022122]
[1610212143951,0.11449,40320.0,40318.0,0.00022122]
[1610212144150,0.11449,40320.0,40310.0,0.00868407]
[1610212144351,0.11449,40320.0,40319.0,0.00022123]
[1610212144554,0.11449,40320.0,40311.0,0.00022123]
[1610212144953,0.13632608,40312.0,40311.0,0.00022123]
[1610212153364,0.13662931,40312.0,40311.0,0.00022123]
[1610212169277,0.13662931,40312.0,40311.0,3.97672123]
[1610212170380,0.13662931,40312.0,40311.0,0.00022123]
[1610212180790,5.42292931,40312.0,40311.0,0.00022123]
[1610212180990,5.42292931,40312.0,40310.0,0.00868407]
[1610212181590,0.00030332,40311.0,40310.0,0.00868407]
[1610212181790,0.11235332,40311.0,40310.0,0.00868407]
[1610212181990,2.97372068,40311.0,40310.0,0.00868407]
[1610212182492,3.97372068,40311.0,40310.0,0.00868407]
[1610212183596,4.63840486,40311.0,40310.0,0.00868407]
[1610212183994,5.21418829,40311.0,40310.0,0.00868407]
[1610212184193,5.21418829,40311.0,40310.0,8.407e-05]
[1610212184395,9.45226446,40311.0,40310.0,8.407e-05]
[1610212184597,8.45226446,40311.0,40310.0,8.407e-05]
[1610212186497,14.45226446,40311.0,40310.0,8.407e-05]
[1610212186797,14.42192928,40311.0,40310.0,8.407e-05]
[1610212187398,16.11516952,40311.0,40310.0,8.407e-05]
[1610212187698,15.27066662,40311.0,40310.0,8.407e-05]
[1610212188498,10.27066662,40311.0,40310.0,8.407e-05]
[1610212189705,10.55096662,40311.0,40310.0,8.407e-05]
[1610212189904,11.39407699,40311.0,40271.0,3.3057]
[1610212190508,0.00315937,40292.0,40271.0,3.3057]
[1610212190706,0.5666,40285.0,40271.0,3.3057]
[1610212190908,0.67225,40285.0,40271.0,3.3057]
[1610212191107,0.13632608,40272.0,40271.0,3.3057]
[1610212191310,0.13632608,40272.0,40254.0,0.09459]
[1610212191907,0.13632608,40272.0,40255.0,0.00022132]
[1610212193207,0.13632608,40256.0,40255.0,0.00022132]
[1610212195011,0.13632608,40256.0,40254.0,0.09459]
[1610212195212,0.13632608,40256.0,40249.0,0.13632608]
[1610212195710,0.13632608,40256.0,40250.0,0.00022133]
[1610212195911,0.13632608,40256.0,40250.0,0.54523133]
[1610212196312,4.0172,40269.0,40251.0,0.00022133]
[1610212197212,0.13632608,40266.0,40262.0,0.13632608]
[1610212197815,0.13632608,40266.0,40263.0,3.7734]
[1610212198415,0.13632608,40266.0,40262.0,0.13632608]
[1610212198814,0.13632608,40266.0,40265.0,3.0596]
[1610212199015,0.08312,40276.0,40263.0,0.0002213]
[1610212199215,0.21944608,40276.0,40275.0,3.64902608]
[1610212199415,0.13632608,40276.0,40275.0,3.64902608]
[1610212199616,0.10565,40285.0,40275.0,3.64902608]
[1610212199816,0.0749,40290.0,40275.0,3.64902608]
[1610212200817,0.2984,40304.0,40275.0,3.64902608]
[1610212201017,0.2984,40304.0,40276.0,0.00022117]
[1610212201217,0.13632608,40293.0,40287.0,0.13632608]
[1610212202217,0.13632608,40293.0,40292.0,3.0609]
[1610212203018,0.20992608,40293.0,40292.0,3.0609]
[1610212203218,0.20992608,40293.0,40292.0,3.19722608]
[1610212203418,0.13632608,40293.0,40292.0,3.19722608]
[1610212203619,0.13632608,40293.0,40292.0,2.72774566]
[1610212204618,0.21052608,40293.0,40292.0,2.72774566]
[1610212205019,0.21052608,40293.0,40292.0,0.13632608]
[1610212205219,0.21052608,40293.0,40287.0,0.11751]
[1610212205419,0.13632608,40293.0,40287.0,0.11751]
[1610212207323,0.13632608,40293.0,40288.0,0.13632608]
[1610212207723,0.13632608,40293.0,40288.0,0.13654721]
[1610212207923,0.13632608,40293.0,40288.0,0.13632608]
[1610212208124,0.0753,40292.0,40288.0,0.13632608]
[1610212208523,0.0753,40292.0,40291.0,3.0848]
[1610212209022,0.0753,40292.0,40291.0,3.08502113]
[1610212209222,0.0753,40292.0,40291.0,3.0848]
[1610212209425,0.13632608,40293.0,40291.0,3.0848]
[1610212209622,0.13632608,40293.0,40288.0,0.13632608]
[1610212209824,0.13632608,40293.0,40287.0,0.11751]
[1610212210024,0.13632608,40293.0,40279.0,4.1368]
[1610212210224,0.13632608,40293.0,40288.0,0.00022112]
[1610212210625,0.13632608,40293.0,40280.0,0.00022112]
[1610212210824,0.13632608,40293.0,40279.0,4.1368]
[1610212211024,0.13632608,40293.0,40280.0,0.00022111]
[1610212211624,0.0737,40292.0,40280.0,0.00022111]
[1610212212324,0.13632608,40293.0,40280.0,0.00022111]
[1610212212524,0.13632608,40293.0,40287.0,3.971]
[1610212212924,0.13632608,40293.0,40288.0,0.00022111]
[1610212213323,0.0751,40292.0,40288.0,0.00022111]
[1610212214024,0.13632608,40293.0,40288.0,0.00022111]
[1610212215027,0.13632608,40293.0,40287.0,0.00022111]
[1610212221137,0.1556,40308.0,40292.0,3.2982]
[1610212221336,0.1556,40308.0,40306.0,0.13632608]
[1610212222138,0.1556,40308.0,40285.0,0.0863]
[1610212222337,0.1556,40308.0,40276.0,0.10633]
[1610212222338,0.1556,40308.0,40295.0,4.1376]
[1610212222736,0.1556,40308.0,40296.0,0.00022114]
[1610212223138,0.1556,40308.0,40291.0,0.00022114]
[1610212223337,0.13632608,40296.0,40292.0,0.13632608]
[1610212223737,0.13632608,40296.0,40293.0,0.00022114]
[1610212223937,0.13632608,40296.0,40295.0,0.4509]
[1610212224137,0.1556,40308.0,40295.0,0.45112114]
[1610212224538,0.1556,40308.0,40296.0,0.00022114]
[1610212224939,0.1556,40308.0,40299.0,3.3597]
[1610212225139,0.1556,40308.0,40299.0,3.45919]
[1610212225340,0.13632608,40303.0,40299.0,3.45919]
[1610212225540,0.13632608,40303.0,40300.0,0.00022114]
[1610212227342,0.13632608,40303.0,40291.0,0.00022114]
[1610212227741,0.13632608,40303.0,40301.0,0.00022116]
[1610212227942,0.13632608,40303.0,40292.0,0.00022116]
[1610212228143,0.13632608,40303.0,40289.0,0.00022116]
[1610212228343,0.13632608,40303.0,40288.0,3.38202608]
[1610212228743,0.13632608,40303.0,40290.0,0.00022116]
[1610212228943,0.0734,40302.0,40289.0,0.00022116]
[1610212229143,0.0734,40302.0,40291.0,0.00022116]
[1610212229343,0.13632608,40292.0,40291.0,0.00022116]
[1610212229543,0.21112608,40292.0,40289.0,0.00022116]
[1610212229742,0.13632608,40292.0,40291.0,0.00022116]
[1610212229945,0.13632608,40292.0,40289.0,0.00022116]
[1610212230343,0.13632608,40292.0,40291.0,0.00022116]
[1610212230543,0.13632608,40292.0,40290.0,0.00022116]
[1610212230744,0.13632608,40292.0,40288.0,3.38202608]
[1610212230745,0.13632608,40292.0,40289.0,0.00022116]
[1610212231144,0.13632608,40292.0,40291.0,0.00022116]
[1610212231345,0.21042608,40292.0,40290.0,0.00022116]
[1610212231544,0.21042608,40292.0,40291.0,0.00022116]
[1610212232044,0.13632608,40292.0,40290.0,0.00022116]
[1610212232447,0.13632608,40292.0,40291.0,0.00022116]
[1610212232845,0.13632608,40292.0,40289.0,0.00022116]
[1610212233245,0.13632608,40292.0,40291.0,0.00022116]
[1610212233446,0.13632608,40292.0,40290.0,0.00022116]
[1610212233646,0.13632608,40292.0,40289.0,0.01152898]
[1610212234049,0.13632608,40292.0,40291.0,0.00022116]
[1610212234246,0.1164,40306.0,40290.0,0.00022116]
[1610212234446,0.1556,40308.0,40291.0,0.00022116]
[1610212234846,0.1556,40308.0,40296.0,3.4928]
[1610212235049,0.0747,40307.0,40296.0,3.4928]
[1610212235248,0.0747,40307.0,40304.0,0.13632608]
[1610212235447,0.1556,40308.0,40304.0,0.53322608]
[1610212235848,0.1556,40308.0,40305.0,0.00022114]
[1610212236349,0.0733,40307.0,40305.0,0.00022114]
[1610212236550,0.1556,40308.0,40305.0,0.00022114]
[1610212237351,0.1556,40308.0,40307.0,2.8562]
[1610212237951,0.1556,40308.0,40307.0,2.85642112]
[1610212238351,0.2293,40308.0,40307.0,2.85642112]
[1610212238552,0.1556,40308.0,40307.0,2.85642112]
[1610212239351,0.29192608,40308.0,40307.0,2.85642112]
[1610212239554,0.36522608,40308.0,40307.0,2.85642112]
[1610212240456,0.29192608,40308.0,40307.0,2.85642112]
[1610212240656,0.29192608,40308.0,40307.0,0.00022112]
[1610212241258,0.29192608,40308.0,40305.0,3.8061]
[1610212241456,0.36702608,40308.0,40305.0,3.8061]
[1610212241661,0.29192608,40308.0,40307.0,0.00022112]
[1610212241863,0.29192608,40308.0,40306.0,0.00022112]
[1610212244059,0.0743,40307.0,40306.0,0.00022112]
[1610212245062,0.29192608,40308.0,40306.0,0.00022112]
[1610212245460,0.29192608,40308.0,40307.0,0.13632608]
[1610212245861,0.29192608,40308.0,40307.0,0.13654598]
[1610212246062,0.36572608,40308.0,40307.0,0.13654598]
[1610212246660,0.29192608,40308.0,40307.0,0.13654598]
[1610212246861,0.1556,40308.0,40307.0,0.13654598]
[1610212247662,0.231,40308.0,40307.0,0.13654598]
[1610212249265,0.1556,40308.0,40307.0,0.13654598]
[1610212250368,0.2288,40308.0,40307.0,0.13654598]
[1610212251469,0.29192608,40308.0,40307.0,0.13654598]
[1610212253371,0.29192608,40308.0,40307.0,0.0002199]
[1610212253971,0.29192608,40308.0,40306.0,0.0002199]
[1610212255275,0.29192608,40308.0,40296.0,3.6202]
[1610212255476,0.13632608,40301.0,40296.0,3.6202]
[1610212255873,0.13632608,40301.0,40297.0,0.0002199]
[1610212257375,0.13632608,40301.0,40297.0,0.01108478]
[1610212258379,0.13632608,40301.0,40297.0,0.0002199]
[1610212258778,0.13632608,40301.0,40298.0,0.0002199]
[1610212259179,0.13632608,40301.0,40297.0,0.01108506]
[1610212259378,0.13632608,40301.0,40299.0,0.0002199]
[1610212259782,0.13632608,40301.0,40297.0,0.01108506]
[1610212259980,0.13632608,40301.0,40300.0,0.0002199]
[1610212260182,0.13632608,40301.0,40298.0,0.0002199]
[1610212260484,0.13632608,40301.0,40297.0,0.01108506]
[1610212260783,0.13632608,40301.0,40299.0,0.0002199]
[1610212260983,0.13632608,40301.0,40297.0,0.01108506]
[1610212261383,0.13632608,40301.0,40300.0,0.0002199]
[1610212261584,0.13632608,40301.0,40298.0,0.0002199]
[1610212261783,0.13632608,40301.0,40297.0,0.01108506]
[1610212262184,0.13632608,40301.0,40299.0,0.0002199]
[1610212262382,0.13632608,40301.0,40298.0,0.0002199]
[1610212262583,0.13632608,40301.0,40297.0,0.01108506]
[1610212262986,0.13632608,40301.0,40299.0,0.0002199]
[1610212263184,0.13632608,40301.0,40298.0,0.0002199]
[1610212263385,0.13632608,40301.0,40300.0,0.0002199]
[1610212263586,0.13632608,40301.0,40297.0,0.01086516]
[1610212263587,0.13632608,40301.0,40299.0,0.0002199]
[1610212263985,0.13632608,40301.0,40297.0,0.01108506]
[1610212264187,0.13632608,40301.0,40300.0,0.0002199]
[1610212264388,0.13632608,40301.0,40298.0,0.0002199]
[1610212264789,0.13632608,40301.0,40300.0,0.0002199]
[1610212264988,0.13632608,40301.0,40299.0,0.0002199]
[1610212265188,0.13632608,40301.0,40300.0,0.0002199]
[1610212265692,0.13632608,40301.0,40297.0,0.01108506]
[1610212266490,0.13632608,40301.0,40300.0,2.9528]
[1610212266891,0.13632608,40301.0,40300.0,2.96388509]
[1610212267489,0.13632608,40301.0,40300.0,3.10021117]
[1610212272394,0.1556,40308.0,40300.0,3.10021117]
[1610212272594,0.1556,40308.0,40300.0,0.14741117]
[1610212272796,0.1556,40308.0,40301.0,0.01108273]
[1610212273397,0.1556,40308.0,40307.0,3.11882608]
[1610212273601,0.1556,40308.0,40307.0,0.13632608]
[1610212273998,0.1556,40308.0,40307.0,0.14740827]
[1610212275805,0.1556,40308.0,40307.0,0.13654594]
[1610212276206,0.25081608,40320.0,40307.0,0.13654594]
[1610212276406,0.25081608,40320.0,40307.0,0.14740729]
[1610212276604,0.25081608,40320.0,40308.0,0.00021986]
[1610212277004,0.25081608,40320.0,40318.0,3.7226]
[1610212277404,0.25081608,40320.0,40319.0,0.00021986]
[1610212277603,0.25081608,40320.0,40319.0,0.13654594]
[1610212278705,0.11449,40320.0,40319.0,0.13654594]
[1610212278904,0.2923,40326.0,40319.0,0.13654594]
[1610212279104,0.1556,40337.0,40323.0,4.0376]
[1610212279504,0.1556,40337.0,40323.0,4.03781983]
[1610212279505,0.13632608,40330.0,40323.0,4.03781983]
[1610212280905,0.13632608,40330.0,40323.0,0.00021983]
[1610212281308,0.13632608,40330.0,40323.0,3.7056]
[1610212281505,0.1556,40337.0,40323.0,3.70581983]
[1610212282305,0.1556,40337.0,40323.0,0.00021983]
[1610212282706,4.0317,40328.0,40323.0,0.00021983]
[1610212282906,4.0317,40328.0,40320.0,0.00021983]
[1610212283107,4.0317,40328.0,40323.0,0.00021983]
[1610212283307,0.08923,40334.0,40323.0,0.00021983]
[1610212283506,0.08923,40334.0,40319.0,0.13632608]
[1610212283507,0.13632608,40325.0,40321.0,0.00021983]
[1610212283706,0.13632608,40325.0,40320.0,0.00021983]
[1610212283907,0.13632608,40325.0,40322.0,0.00021983]
[1610212284106,0.13632608,40325.0,40321.0,0.00021983]
[1610212284506,0.13632608,40325.0,40323.0,0.00021983]
[1610212284706,0.2752,40324.0,40322.0,0.00021983]
[1610212284908,0.2752,40324.0,40320.0,0.00021983]
[1610212285307,0.2752,40324.0,40323.0,0.00021983]
[1610212285507,0.2752,40324.0,40321.0,0.00021983]
[1610212285706,0.2752,40324.0,40323.0,0.00021983]
[1610212286108,0.2752,40324.0,40322.0,0.00021983]
[1610212286308,0.2752,40324.0,40323.0,0.00021983]
[1610212286911,0.2752,40324.0,40320.0,0.00021983]
[1610212287111,0.2752,40324.0,40323.0,0.00021983]
[1610212287311,0.2752,40324.0,40320.0,0.00021983]
[1610212287711,0.2752,40324.0,40323.0,0.00021983]
[1610212287910,0.2752,40324.0,40320.0,0.00021983]
[1610212288111,0.2752,40324.0,40323.0,0.00021983]
[1610212288312,0.2752,40324.0,40321.0,0.00021983]
[1610212288714,0.2752,40324.0,40323.0,0.00021983]
[1610212288914,0.2752,40324.0,40322.0,0.00021983]
[1610212289116,0.2752,40324.0,40323.0,0.00021983]
[1610212289313,0.13632608,40325.0,40323.0,0.00021983]
[1610212289714,0.13632608,40325.0,40320.0,0.00021983]
[1610212289916,0.13632608,40325.0,40324.0,0.00021983]
[1610212290315,0.13632608,40325.0,40321.0,0.00021981]
[1610212290516,0.08923,40334.0,40324.0,0.00021981]
[1610212290716,0.1556,40337.0,40320.0,0.00021981]
[1610212290916,0.1556,40337.0,40325.0,3.7004]
[1610212291116,0.1556,40337.0,40325.0,3.70061981]
[1610212291316,0.1556,40337.0,40326.0,0.00021981]
[1610212291516,0.29192608,40337.0,40331.0,0.13632608]
[1610212291718,0.29192608,40337.0,40333.0,0.508]
[1610212293118,0.29192608,40337.0,40331.0,0.13632608]
[1610212293319,0.39430608,40337.0,40336.0,3.0272]
[1610212294221,0.39430608,40337.0,40331.0,0.13632608]
[1610212294419,0.39430608,40337.0,40333.0,3.3979]
[1610212296221,0.39430608,40337.0,40331.0,0.13632608]
[1610212297523,0.25798,40337.0,40332.0,0.0002198]
[1610212297924,0.25798,40337.0,40336.0,4.1445]
[1610212298726,0.25798,40337.0,40336.0,4.14471979]
[1610212298926,0.25798,40337.0,40336.0,4.1445]
[1610212299524,0.39430608,40337.0,40336.0,4.1445]
[1610212299925,0.39430608,40337.0,40336.0,4.14471979]
[1610212301526,0.39430608,40337.0,40336.0,4.28104587]
[1610212303825,0.23870608,40337.0,40336.0,4.28104587]
[1610212304025,0.66639265,40337.0,40336.0,4.28104587]
[1610212304627,0.53006657,40337.0,40336.0,4.28104587]
[1610212310436,0.42768657,40337.0,40336.0,4.28104587]
[1610212314135,0.42768657,40337.0,40336.0,4.29205152]
[1610212316035,0.42768657,40337.0,40336.0,4.28104587]
[1610212318038,0.42768657,40337.0,40336.0,4.29205026]
[1610212318439,0.42768657,40337.0,40336.0,4.28104587]
[1610212320943,0.42768657,40337.0,40336.0,4.29205033]
[1610212321644,0.42768657,40337.0,40336.0,4.28104587]
[1610212323045,0.42768657,40337.0,40336.0,4.2920468]
[1610212323445,0.42768657,40337.0,40336.0,4.28104587]
[1610212325149,0.42768657,40337.0,40336.0,4.29204702]
[1610212325548,0.42768657,40337.0,40336.0,4.28104587]
[1610212329152,0.42768657,40337.0,40336.0,4.29204764]
[1610212330255,0.42768657,40337.0,40336.0,0.14754764]
[1610212332054,0.42768657,40337.0,40336.0,0.13654587]
[1610212332254,0.42768657,40337.0,40336.0,0.1475472]
[1610212333755,0.56401265,40337.0,40336.0,0.01122112]
[1610212333955,0.56401265,40337.0,40336.0,0.00021979]
[1610212334757,0.56401265,40337.0,40325.0,0.07258]
[1610212334758,0.56401265,40337.0,40326.0,0.01122609]
[1610212334956,0.56401265,40337.0,40336.0,0.00022008]
[1610212335156,0.56401265,40337.0,40327.0,0.0002201]
[1610212335557,0.56401265,40337.0,40325.0,0.07258]
[1610212335558,0.56401265,40337.0,40336.0,0.0002201]
[1610212335757,0.56401265,40337.0,40328.0,0.0002201]
[1610212335957,0.56401265,40337.0,40336.0,0.0002201]
[1610212336357,0.56401265,40337.0,40329.0,0.0002201]
[1610212336558,0.56401265,40337.0,40336.0,0.0002201]
[1610212336757,0.56401265,40337.0,40330.0,0.0002201]
[1610212337157,0.56401265,40337.0,40336.0,0.0002201]
[1610212337357,0.56401265,40337.0,40327.0,0.13632608]
[1610212337358,0.56401265,40337.0,40331.0,0.00022012]
[1610212337556,0.56401265,40337.0,40336.0,0.00022012]
[1610212337959,0.56401265,40337.0,40332.0,0.00022012]
[1610212338158,0.56401265,40337.0,40336.0,0.00022012]
[1610212338358,0.65077265,40337.0,40333.0,0.00022012]
[1610212338758,0.65077265,40337.0,40327.0,0.13632608]
[1610212338958,0.65077265,40337.0,40334.0,0.00022014]
[1610212339159,0.65077265,40337.0,40328.0,0.00022014]
[1610212339358,0.65077265,40337.0,40335.0,0.00022016]
[1610212339759,0.65077265,40337.0,40328.0,0.00022016]
[1610212339961,0.65077265,40337.0,40336.0,0.00022016]
[1610212340162,0.65077265,40337.0,40329.0,0.00022016]